bitfinex/quotes_SOLUSD_20250413
["timestamp","ask_amount","ask_price","bid_price","bid_amount"]
[1744508418983,16.13960619,131.99,131.96,10.2058131]
[1744508419605,16.13960619,132.0,131.96,10.2058131]
[1744508420198,16.13960619,132.0,131.96,2.6278131]
[1744508420385,16.13960619,131.99,131.96,2.6278131]
[1744508423505,7.88,132.02,131.96,10.2058131]
[1744508423811,16.13960619,132.0,131.96,10.2058131]
[1744508424305,24.01960619,132.02,131.96,10.2058131]
[1744508424510,16.13960619,132.0,131.96,10.2058131]
[1744508424683,16.13960619,132.01,131.96,26.34541929]
[1744508424883,16.13960619,132.0,131.96,2.6278131]
[1744508425099,16.13960619,131.99,131.96,2.6278131]
[1744508425292,16.13960619,131.97,131.96,2.6278131]
[1744508426087,16.13960619,131.98,131.96,2.6278131]
[1744508426408,16.13960619,131.99,131.96,2.6278131]
[1744508426787,16.13960619,131.99,131.96,10.2058131]
[1744508428692,7.88,132.02,131.96,10.2058131]
[1744508429012,16.13960619,132.01,131.96,26.34541929]
[1744508429191,7.88,132.02,131.96,26.34541929]
[1744508429389,26.22324886,132.04,131.96,10.2058131]
[1744508429605,16.13960619,132.02,131.97,16.13960619]
[1744508430205,16.13960619,132.02,131.97,23.71680619]
[1744508430795,1.6395,132.05,131.99,16.13960619]
[1744508430991,16.13960619,132.03,131.98,16.13960619]
[1744508431192,1.6395,132.05,131.98,16.13960619]
[1744508431417,16.13960619,132.03,131.98,16.13960619]
[1744508431915,7.923,132.06,132.0,16.13960619]
[1744508432222,16.13960619,132.01,131.96,10.2057131]
[1744508432601,16.13960619,132.0,131.96,10.2057131]
[1744508432797,16.13960619,132.0,131.96,2.6278131]
[1744508433011,7.5746,132.02,131.96,18.76741929]
[1744508433320,23.71420619,132.02,131.97,16.13960619]
[1744508433715,7.5746,132.02,131.96,2.6278131]
[1744508433918,16.13960619,132.04,131.98,16.13960619]
[1744508434432,23.71320619,132.04,131.99,7.5763]
[1744508434637,16.13960619,132.04,131.99,23.71590619]
[1744508437218,7.923,132.06,132.0,16.13960619]
[1744508437521,24.06260619,132.06,132.0,16.13960619]
[1744508437902,7.923,132.06,132.01,16.13960619]
[1744508438216,7.923,132.06,131.98,87.79]
[1744508438217,16.13960619,132.05,131.98,87.79]
[1744508438426,16.13960619,132.05,132.0,16.13960619]
[1744508438722,24.06260619,132.06,132.0,16.13960619]
[1744508439121,31.63500619,132.06,132.01,7.5751]
[1744508439323,16.13960619,132.05,132.01,7.5751]
[1744508440726,24.06260619,132.06,132.01,23.71470619]
[1744508441323,18.01311213,132.06,132.01,17.66521213]
[1744508442025,10.09011213,132.05,132.01,7.5751]
[1744508442510,10.09011213,132.04,132.0,7.5755]
[1744508442929,10.09011213,132.05,132.0,17.66561213]
[1744508443322,10.09011213,132.03,131.99,7.5761]
[1744508443823,10.09011213,132.05,132.0,10.09011213]
[1744508444206,7.923,132.06,132.0,10.09011213]
[1744508444418,18.01311213,132.06,132.01,10.09011213]
[1744508444727,18.01311213,132.06,132.0,36.60511213]
[1744508444907,18.01311213,132.06,132.0,7.5757]
[1744508444908,10.09011213,132.04,132.0,7.5757]
[1744508445112,10.09011213,132.03,131.99,7.5761]
[1744508446216,10.09011213,132.04,131.99,17.66621213]
[1744508447228,0.063,132.06,132.01,10.09011213]
[1744508447412,10.15311213,132.06,132.01,10.09011213]
[1744508447603,0.063,132.06,132.03,10.09011213]
[1744508447812,0.063,132.06,132.02,10.09011213]
[1744508448321,0.063,132.06,132.03,7.574]
[1744508450032,0.063,132.06,132.04,10.09011213]
[1744508450211,0.063,132.06,132.05,7.5728]
[1744508450433,0.063,132.06,132.05,17.66291213]
[1744508451609,10.15311213,132.06,132.01,7.5751]
[1744508451809,10.09011213,132.03,131.99,1.5401]
[1744508452029,10.09011213,132.03,131.96,84.2278131]
[1744508452030,10.09011213,132.01,131.97,7.5774]
[1744508452735,10.09011213,132.02,131.97,17.66751213]
[1744508453537,7.5734,132.05,131.97,7.5774]
[1744508453538,10.09011213,132.01,131.97,7.5774]
[1744508454044,10.09011213,132.02,131.97,7.5774]
[1744508454255,7.5734,132.05,131.97,26.521]
[1744508454431,26.0,132.03,131.97,10.09011213]
[1744508454626,18.933972,131.97,131.86,7.5836]
[1744508454850,10.09011213,131.9,131.84,11.63021213]
[1744508455154,10.09011213,131.87,131.82,17.67601213]
[1744508455361,16.19248265,131.86,131.82,7.5859]
[1744508455528,16.19248265,131.89,131.84,16.19248265]
[1744508455860,16.19248265,131.9,131.84,16.19248265]
[1744508456056,16.19248265,131.91,131.86,16.19248265]
[1744508456358,16.19248265,131.89,131.84,16.19248265]
[1744508456527,16.19248265,131.89,131.84,23.77718265]
[1744508457045,16.19248265,131.9,131.85,16.19248265]
[1744508457523,16.19248265,131.91,131.86,16.19248265]
[1744508457722,16.19248265,131.9,131.85,16.19248265]
[1744508458141,16.47680579,131.94,131.84,7.5847]
[1744508458142,82.6127,131.97,131.88,16.19248265]
[1744508458346,1.6127,131.97,131.89,16.19248265]
[1744508458522,1.6127,131.97,131.9,16.19248265]
[1744508458523,16.19248265,131.95,131.9,16.19248265]
[1744508458721,16.19248265,131.91,131.86,16.19248265]
[1744508459122,7.62,131.94,131.88,16.19248265]
[1744508459338,7.62,131.94,131.89,16.19248265]
[1744508459543,16.19248265,131.96,131.91,16.19248265]
[1744508459959,16.19248265,131.96,131.92,16.19248265]
[1744508460429,23.81248265,131.98,131.94,7.5792]
[1744508460630,1.6127,132.01,131.94,23.77168265]
[1744508460832,273.4825,132.02,131.95,16.19248265]
[1744508461058,16.19248265,131.98,131.94,23.77168265]
[1744508461241,16.19248265,131.99,131.94,23.77168265]
[1744508462232,273.4825,132.02,131.95,16.19248265]
[1744508462233,16.19248265,132.0,131.95,16.19248265]
[1744508462447,16.19248265,131.99,131.94,7.5792]
[1744508462624,16.19248265,131.99,131.94,23.77168265]
[1744508462829,13.6825,132.02,131.95,16.19248265]
[1744508463030,16.19248265,132.01,131.96,16.19248265]
[1744508463247,16.19248265,132.0,131.95,16.19248265]
[1744508463630,16.19248265,132.01,131.96,16.19248265]
[1744508464029,16.19248265,132.01,131.96,23.77048265]
[1744508464252,16.19248265,132.02,131.97,16.19248265]
[1744508464548,16.19248265,132.03,131.98,16.19248265]
[1744508464763,7.683,132.06,132.0,16.19248265]
[1744508464966,23.87548265,132.06,132.01,16.19248265]
[1744508465132,16.25548265,132.06,132.01,16.19248265]
[1744508465332,16.19248265,132.05,132.0,16.19248265]
[1744508465633,0.063,132.06,132.02,16.19248265]
[1744508465941,16.19248265,132.04,131.98,7.62]
[1744508466147,16.25548265,132.06,131.99,7.5763]
[1744508466447,16.19248265,132.04,131.99,42.70958265]
[1744508466846,0.063,132.06,132.01,16.19248265]
[1744508467034,16.25548265,132.06,132.01,16.19248265]
[1744508467235,0.063,132.06,132.02,16.19248265]
[1744508468032,0.063,132.06,132.03,7.574]
[1744508468233,16.25548265,132.06,132.03,7.574]
[1744508469053,16.25548265,132.06,132.02,7.5746]
[1744508470056,16.25548265,132.06,132.02,23.76708265]
[1744508470440,16.25548265,132.06,132.02,7.5746]
[1744508471244,16.25548265,132.06,132.02,23.76708265]
[1744508471454,0.063,132.06,132.05,16.19248265]
[1744508472455,0.0001,132.06,132.05,99.37348265]
[1744508472644,0.0001,132.06,132.05,134.35777573]
[1744508472977,0.063,132.1,132.05,134.35777573]
[1744508473144,0.063,132.1,132.09,16.19248265]
[1744508473341,0.063,132.1,132.09,23.76298265]
[1744508474043,0.063,132.13,132.09,130.91018265]
[1744508474237,0.063,132.13,132.11,16.19248265]
[1744508474666,0.063,132.13,132.12,16.19248265]
[1744508474873,0.063,132.13,132.11,81.6]
[1744508475069,0.063,132.13,132.12,16.19248265]
[1744508475252,0.0001,132.13,132.12,33.9938653]
[1744508475452,0.0001,132.13,132.12,41.5626653]
[1744508475966,0.0001,132.14,132.13,18.79181043]
[1744508476142,0.0001,132.14,132.13,42.60429308]
[1744508477447,0.0001,132.14,132.13,50.45691622]
[1744508478363,0.063,132.18,132.14,0.28432314]
[1744508478562,0.063,132.18,132.14,100.39181043]
[1744508478863,0.063,132.18,132.17,16.19248265]
[1744508479065,0.0001,132.18,132.17,132.77677573]
[1744508479661,0.0001,132.18,132.17,140.34277573]
[1744508480261,0.0001,132.21,132.17,165.98379887]
[1744508480445,0.0001,132.21,132.2,34.98429308]
[1744508480654,0.0001,132.21,132.2,116.58429308]
[1744508480842,0.0001,132.21,132.2,116.86861622]
[1744508481041,0.063,132.28,132.2,118.37881622]
[1744508481261,0.063,132.28,132.26,16.19248265]
[1744508481470,16.25548265,132.28,132.21,7.64]
[1744508481659,16.25548265,132.28,132.24,16.19248265]
[1744508481865,0.063,132.28,132.24,16.19248265]
[1744508482242,0.063,132.28,132.24,23.83248265]
[1744508483175,16.25548265,132.28,132.22,26.4709]
[1744508483376,0.063,132.28,132.23,23.83248265]
[1744508483675,16.25548265,132.28,132.23,23.83248265]
[1744508483859,16.25548265,132.28,132.24,7.562]
[1744508484062,16.25548265,132.28,132.24,23.75448265]
[1744508484592,0.063,132.28,132.24,23.75448265]
[1744508484872,16.19248265,132.27,132.22,7.5631]
[1744508485081,16.19248265,132.26,132.23,7.64]
[1744508485287,16.19248265,132.25,132.22,7.5631]
[1744508485584,16.19248265,132.24,132.21,7.64]
[1744508485881,16.19248265,132.25,132.21,7.64]
[1744508486568,0.34732314,132.28,132.24,32.3849653]
[1744508486569,0.063,132.28,132.24,32.3849653]
[1744508486880,0.063,132.28,132.27,23.75268265]
[1744508487881,0.063,132.29,132.27,105.35268265]
[1744508488089,0.0001,132.3,132.29,60.98429308]
[1744508488384,0.0001,132.3,132.29,81.6]
[1744508488673,0.0001,132.3,132.29,97.79248265]
[1744508488856,0.0001,132.3,132.29,89.1591]
[1744508489053,0.0001,132.3,132.29,105.35158265]
[1744508489462,0.0001,132.3,132.29,23.75158265]
[1744508491174,0.0001,132.3,132.28,7.5597]
[1744508491476,0.0001,132.3,132.29,16.19248265]
[1744508492261,0.0001,132.3,132.29,51.17677573]
[1744508492457,0.0001,132.31,132.3,32.3849653]
[1744508493161,0.0001,132.31,132.3,58.73527573]
[1744508496682,0.063,132.34,132.3,77.63167573]
[1744508496983,0.063,132.34,132.33,16.19248265]
[1744508497278,0.063,132.34,132.33,23.83248265]
[1744508497479,0.063,132.34,132.33,31.38928265]
[1744508497984,0.0001,132.34,132.33,50.18109308]
[1744508498175,0.063,132.36,132.34,18.79181043]
[1744508498375,0.063,132.38,132.37,16.19248265]
[1744508499864,0.063,132.38,132.34,7.5562]
[1744508500065,0.063,132.38,132.34,23.74868265]
[1744508500266,0.063,132.38,132.35,16.19248265]
[1744508500662,0.063,132.38,132.34,23.74868265]
[1744508500875,0.063,132.38,132.35,16.19248265]
[1744508501784,0.063,132.38,132.35,7.5552]
[1744508501986,0.063,132.38,132.35,23.74768265]
[1744508503882,16.25548265,132.38,132.34,7.5561]
[1744508504071,0.063,132.38,132.37,16.19248265]
[1744508505480,0.063,132.38,132.37,23.81248265]
[1744508505872,0.063,132.38,132.37,31.36698265]
[1744508506370,0.063,132.38,132.36,7.555]
[1744508506573,0.063,132.38,132.36,23.74748265]
[1744508506781,0.063,132.38,132.37,16.19248265]
[1744508507394,0.063,132.38,132.37,7.5545]
[1744508507772,0.063,132.38,132.37,23.74698265]
[1744508508690,0.063,132.38,132.37,7.5545]
[1744508509187,0.063,132.38,132.37,16.19248265]
[1744508511180,0.063,132.38,132.37,23.74698265]
[1744508515995,0.063,132.38,132.37,7.5545]
[1744508516196,0.063,132.38,132.36,7.555]
[1744508518688,0.063,132.38,132.36,23.74748265]
[1744508519096,0.063,132.38,132.36,7.555]
[1744508519285,0.063,132.38,132.36,23.74748265]
[1744508519900,0.063,132.38,132.36,7.555]
[1744508520619,16.19248265,132.37,132.32,7.62]
[1744508520915,16.19248265,132.33,132.26,23.75328265]
[1744508521118,16.19248265,132.3,132.26,7.5608]
[1744508521403,16.19248265,132.32,132.27,16.19248265]
[1744508521699,16.19248265,132.32,132.3,0.03]
[1744508521900,16.19248265,132.31,132.3,0.03]
[1744508522307,30.69110579,132.31,132.3,0.03]
[1744508522612,24.69730579,132.31,132.3,0.03]
[1744508522997,30.22173125,132.31,132.3,0.03]
[1744508523195,32.98394398,132.31,132.3,0.03]
[1744508523513,40.54194398,132.31,132.3,0.03]
[1744508524387,14.94293819,132.31,132.3,0.03]
[1744508524812,8.28663819,132.31,132.3,0.03]
[1744508525011,2.76221273,132.31,132.3,16.22248265]
[1744508525302,6.6563,132.37,132.31,18.79181043]
[1744508525545,0.063,132.38,132.36,16.19248265]
[1744508525714,0.063,132.38,132.31,26.37181043]
[1744508525715,0.063,132.38,132.34,16.19248265]
[1744508525889,0.063,132.38,132.35,16.19248265]
[1744508526219,0.063,132.38,132.37,7.5545]
[1744508528206,0.063,132.38,132.37,23.74698265]
[1744508531613,0.063,132.38,132.35,23.74818265]
[1744508531791,0.063,132.38,132.35,7.5557]
[1744508532110,0.063,132.38,132.35,23.74818265]
[1744508532323,0.063,132.38,132.37,16.19248265]
[1744508533618,0.063,132.38,132.37,23.74698265]
[1744508534813,0.063,132.38,132.37,7.5545]
[1744508535011,0.063,132.38,132.37,23.74698265]
[1744508535911,0.063,132.38,132.37,7.5545]
[1744508536104,0.063,132.38,132.34,97.79248265]
[1744508536298,16.19248265,132.37,132.33,23.74928265]
[1744508536894,16.25548265,132.38,132.33,23.74928265]
[1744508538046,16.19248265,132.37,132.33,7.5568]
[1744508538626,0.063,132.38,132.36,16.19248265]
[1744508538798,0.063,132.38,132.37,7.5545]
[1744508538994,16.25548265,132.38,132.33,100.4921]
[1744508539203,0.063,132.38,132.34,23.74868265]
[1744508539407,0.063,132.38,132.35,16.19248265]
[1744508539803,0.063,132.38,132.34,23.74868265]
[1744508539999,16.25548265,132.38,132.34,7.5562]
[1744508540622,16.19248265,132.36,132.31,7.58]
[1744508540924,16.19248265,132.34,132.3,7.5885]
[1744508541213,16.19248265,132.33,132.3,7.5885]
[1744508542020,16.19248265,132.33,132.3,0.03]
[1744508542228,16.19248265,132.31,132.3,0.03]
[1744508543121,16.19248265,132.32,132.3,0.03]
[1744508544423,16.19248265,132.31,132.3,0.03]
[1744508544809,16.19248265,132.32,132.3,0.03]
[1744508545207,6.4316,132.34,132.3,16.22248265]
[1744508545615,26.0,132.35,132.32,16.19248265]
[1744508545822,6.4946,132.38,132.34,16.19248265]
[1744508546341,6.4946,132.38,132.35,7.5557]
[1744508550014,0.063,132.38,132.36,16.19248265]
[1744508550220,0.063,132.38,132.37,16.19248265]
[1744508550547,0.063,132.38,132.36,16.19248265]
[1744508551231,0.063,132.38,132.37,7.5545]
[1744508553520,0.063,132.4,132.37,42.53879308]
[1744508553722,0.063,132.4,132.39,16.19248265]
[1744508554546,0.0001,132.4,132.39,34.98429308]
[1744508554711,0.0001,132.4,132.39,35.26861622]
[1744508555144,0.0001,132.42,132.41,0.28432314]
[1744508555324,0.0001,132.42,132.41,32.66928844]
[1744508555518,0.0001,132.42,132.41,24.02900579]
[1744508555727,0.0001,132.42,132.41,40.22148844]
[1744508556219,0.0001,132.42,132.41,23.74468265]
[1744508556435,0.0001,132.42,132.41,7.5522]
[1744508556628,0.0001,132.42,132.41,23.74468265]
[1744508557939,0.0001,132.42,132.41,58.72897573]
[1744508558239,0.0001,132.42,132.41,42.53649308]
[1744508558925,0.0001,132.42,132.41,26.34401043]
[1744508559131,0.0001,132.42,132.41,23.74468265]
[1744508561437,0.063,132.44,132.43,16.19248265]
[1744508562151,0.063,132.44,132.43,34.98429308]
[1744508563347,0.063,132.44,132.43,42.53539308]
[1744508563536,0.063,132.44,132.43,23.74358265]
[1744508564436,0.0001,132.44,132.43,42.53539308]
[1744508564824,0.0001,132.44,132.37,1.0]
[1744508565028,16.19248265,132.4,132.36,7.5551]
[1744508565238,16.19248265,132.39,132.36,7.5551]
[1744508565454,16.19248265,132.37,132.33,7.5568]
[1744508565741,22.63348265,132.42,132.36,16.19248265]
[1744508566122,22.63348265,132.42,132.37,16.19248265]
[1744508566326,22.63348265,132.42,132.34,18.79181043]
[1744508566625,22.63348265,132.42,132.36,16.19248265]
[1744508566822,22.63348265,132.42,132.37,16.19248265]
[1744508567641,22.63348265,132.42,132.37,23.74648265]
[1744508567840,16.19248265,132.41,132.37,7.554]
[1744508568141,16.19248265,132.38,132.34,7.5562]
[1744508568344,16.19248265,132.39,132.34,23.74868265]
[1744508569352,16.19248265,132.4,132.35,16.19248265]
[1744508571431,16.19248265,132.4,132.36,7.5551]
[1744508572155,16.19248265,132.41,132.36,23.74758265]
[1744508572546,16.19248265,132.4,132.36,7.5551]
[1744508572743,6.441,132.42,132.36,23.74758265]
[1744508572946,16.19248265,132.41,132.36,23.74758265]
[1744508574336,16.19248265,132.4,132.36,7.5551]
[1744508574856,13.9928,132.42,132.36,7.5551]
[1744508575157,16.19248265,132.4,132.36,7.5551]
[1744508576058,16.19248265,132.41,132.36,23.74758265]
[1744508577159,22.63348265,132.42,132.37,16.19248265]
[1744508577452,7.4201,132.44,132.38,16.19248265]
[1744508577638,16.19248265,132.43,132.38,16.19248265]
[1744508578466,0.0001,132.44,132.42,16.19248265]
[1744508578642,0.0001,132.44,132.43,16.19248265]
[1744508579343,0.0001,132.44,132.41,16.19248265]
[1744508579745,0.0001,132.44,132.42,16.19248265]
[1744508580451,0.0001,132.44,132.42,23.74358265]
[1744508581133,0.0001,132.44,132.43,16.19248265]
[1744508581364,0.0001,132.44,132.43,34.98429308]
[1744508582353,0.0001,132.44,132.43,23.74358265]
[1744508592462,0.0001,132.44,132.42,81.6]
[1744508592665,0.0001,132.44,132.41,16.19248265]
[1744508592865,0.0001,132.44,132.41,7.5522]
[1744508593090,0.0001,132.44,132.41,23.74468265]
[1744508593375,0.0001,132.44,132.43,10.02648765]
[1744508593865,0.0001,132.44,132.42,10.02648765]
[1744508594255,0.0001,132.44,132.43,10.02648765]
[1744508594455,0.0001,132.44,132.43,117.96939808]
[1744508594969,0.0001,132.44,132.43,118.25372122]
[1744508595788,0.0001,132.45,132.44,19.07613357]
[1744508596068,0.0001,132.45,132.44,29.10262122]
[1744508597776,0.0001,132.45,132.44,36.65312122]
[1744508597958,0.03,132.48,132.47,54.81829808]
[1744508598156,0.03,132.48,132.47,136.41829808]
[1744508598665,0.03,132.5,132.48,18.79181043]
[1744508598972,0.03,132.5,132.49,28.81829808]
[1744508599172,5.9692,132.55,132.49,28.81829808]
[1744508599380,5.9692,132.55,132.52,10.02648765]
[1744508599872,0.03,132.56,132.54,7.5448]
[1744508600254,0.03,132.56,132.55,10.02648765]
[1744508601074,0.03,132.56,132.55,28.81829808]
[1744508601279,0.03,132.56,132.55,34.79850176]
[1744508601855,0.03,132.56,132.55,42.34280176]
[1744508602466,0.03,132.56,132.55,42.6271249]
[1744508603576,0.03,132.58,132.55,124.2271249]
[1744508603777,0.03,132.58,132.57,16.00669133]
[1744508603968,0.03,132.58,132.57,23.54979133]
[1744508604356,0.03,132.58,132.56,7.5436]
[1744508604697,0.03,132.58,132.55,105.15079133]
[1744508605454,0.03,132.58,132.55,23.55079133]
[1744508605978,16.00669133,132.57,132.54,7.36]
[1744508606967,23.54989133,132.57,132.52,16.00669133]
[1744508607164,16.00669133,132.53,132.49,7.24]
[1744508607777,16.00669133,132.53,132.49,14.7876]
[1744508607970,16.00669133,132.52,132.48,7.5481]
[1744508608659,16.00669133,132.52,132.45,7.24]
[1744508608660,16.00669133,132.5,132.45,7.24]
[1744508608861,16.00669133,132.48,132.44,7.5504]
[1744508609080,16.00669133,132.49,132.44,23.55709133]
[1744508609474,16.00669133,132.49,132.44,7.5504]
[1744508609789,16.00669133,132.49,132.44,23.55709133]
[1744508610586,22.66529133,132.48,132.44,7.5504]
[1744508610985,16.00669133,132.47,132.43,89.1509]
[1744508611178,16.00669133,132.47,132.41,25.88964886]
[1744508611179,6.6586,132.48,132.41,23.55879133]
[1744508611370,16.00669133,132.47,132.42,16.00669133]
[1744508611768,22.66529133,132.48,132.43,16.00669133]
[1744508612791,22.66529133,132.48,132.43,23.55749133]
[1744508615288,6.6586,132.48,132.43,23.55749133]
[1744508615491,22.66529133,132.48,132.42,16.00669133]
[1744508615872,6.6586,132.48,132.44,16.00669133]
[1744508616073,6.6586,132.48,132.41,16.00669133]
[1744508616074,16.00669133,132.47,132.41,16.00669133]
[1744508616286,16.00669133,132.44,132.39,23.55989133]
[1744508616478,16.00669133,132.43,132.39,7.5532]
[1744508616682,16.00669133,132.44,132.39,23.55989133]
[1744508616873,42.00669133,132.45,132.4,16.00669133]
[1744508617078,16.00669133,132.44,132.39,23.55989133]
[1744508617477,16.00669133,132.42,132.38,7.617]
[1744508617673,16.00669133,132.43,132.38,23.62369133]
[1744508618000,16.00669133,132.44,132.39,16.00669133]
[1744508618173,16.00669133,132.46,132.41,16.00669133]
[1744508618375,16.00669133,132.45,132.4,16.00669133]
[1744508619504,16.00669133,132.47,132.42,16.00669133]
[1744508619669,22.66529133,132.48,132.43,16.00669133]
[1744508619871,6.4197,132.51,132.47,16.00669133]
[1744508620774,6.4197,132.51,132.48,16.00669133]
[1744508621275,22.19179133,132.54,132.49,16.00669133]
[1744508621669,29.73669133,132.54,132.49,16.00669133]
[1744508621890,16.00669133,132.53,132.48,23.55439133]
[1744508628108,6.4905,132.48,132.4,18.8813]
[1744508628407,16.00669133,132.44,132.4,18.8813]
[1744508628608,16.00669133,132.45,132.39,23.56009133]
[1744508628775,16.00669133,132.45,132.4,16.00669133]
[1744508629387,10.03075918,132.45,132.4,10.03075918]
[1744508629785,10.03075918,132.44,132.39,17.58415918]
[1744508630102,10.03075918,132.45,132.42,0.063]
[1744508631087,10.03075918,132.44,132.42,0.063]
[1744508631282,6.4905,132.42,132.38,0.063]
[1744508631480,61.13419957,132.39,132.38,0.063]
[1744508631684,19.07613357,132.38,132.34,0.063]
[1744508631876,34.84987643,132.35,132.34,0.063]
[1744508632193,16.34238914,132.35,132.34,0.063]
[1744508633100,7.24,132.37,132.34,0.063]
[1744508633301,16.058066,132.36,132.34,0.063]
[1744508633884,23.298066,132.37,132.34,0.063]
[1744508634793,41.48409332,132.43,132.34,0.063]
[1744508634794,6.4905,132.42,132.36,16.058066]
[1744508634996,16.058066,132.41,132.36,16.058066]
[1744508635179,16.058066,132.39,132.34,16.121066]
[1744508635378,16.058066,132.38,132.34,0.063]
[1744508635580,14.0423,132.42,132.35,16.058066]
[1744508635893,16.058066,132.38,132.34,0.063]
[1744508636280,16.058066,132.37,132.34,0.063]
[1744508636478,16.058066,132.38,132.34,0.063]
[1744508636693,16.058066,132.39,132.34,16.121066]
[1744508638900,7.553,132.4,132.34,0.063]
[1744508639100,16.058066,132.38,132.34,0.063]
[1744508640104,7.553,132.4,132.34,16.121066]
[1744508640105,16.058066,132.39,132.34,16.121066]
[1744508640481,16.058066,132.41,132.36,16.058066]
[1744508640904,16.058066,132.41,132.36,23.612666]
[1744508641113,16.058066,132.4,132.34,7.6188]
[1744508641278,16.058066,132.38,132.34,0.063]
[1744508641485,0.14216157,132.4,132.34,0.063]
[1744508641486,35.13419957,132.35,132.34,0.063]
[1744508643122,16.34238914,132.35,132.34,0.063]
[1744508643284,42.68989957,132.35,132.34,0.063]
[1744508643608,23.89808914,132.35,132.34,0.063]
[1744508644598,16.34238914,132.35,132.34,0.063]
[1744508644904,16.058066,132.35,132.34,0.063]
[1744508646119,23.613766,132.35,132.34,0.063]
[1744508646707,16.058066,132.35,132.34,0.063]
[1744508647506,23.613766,132.35,132.34,0.063]
[1744508648002,16.058066,132.35,132.34,0.063]
[1744508648320,14.773,132.4,132.34,0.063]
[1744508648518,16.058066,132.39,132.34,16.121066]
[1744508648808,7.5524,132.41,132.35,16.058066]
[1744508649190,16.058066,132.4,132.35,16.058066]
[1744508649398,16.058066,132.41,132.36,23.612766]
[1744508649595,16.058066,132.4,132.36,7.5547]
[1744508650533,16.058066,132.39,132.36,7.5547]
[1744508650889,16.058066,132.4,132.36,7.5547]
[1744508651529,16.058066,132.39,132.34,0.063]
[1744508651713,16.058066,132.4,132.35,16.058066]
[1744508652020,16.058066,132.41,132.36,16.058066]
[1744508653415,16.058066,132.4,132.35,16.058066]
[1744508653615,16.058066,132.41,132.36,23.613166]
[1744508655312,16.058066,132.4,132.36,7.5551]
[1744508657422,10.03847153,132.4,132.35,10.03847153]
[1744508658123,6.4905,132.42,132.36,10.03847153]
[1744508658298,10.03847153,132.41,132.36,10.03847153]
[1744508659427,10.03847153,132.41,132.37,7.5545]
[1744508660097,10.03847153,132.42,132.37,17.59297153]
[1744508660317,17.25847153,132.44,132.39,10.03847153]
[1744508660501,10.03847153,132.44,132.39,10.03847153]
[1744508661407,10.03847153,132.45,132.4,10.03847153]
[1744508661604,10.03847153,132.44,132.4,7.5528]
[1744508662009,10.03847153,132.43,132.39,7.5532]
[1744508662202,10.03847153,132.41,132.37,7.5545]
[1744508662715,10.03847153,132.42,132.37,17.59297153]
[1744508662900,10.03847153,132.43,132.38,10.03847153]
[1744508663419,10.03847153,132.43,132.39,10.03847153]
[1744508663627,9.53847153,132.43,132.4,7.5528]
[1744508664011,7.5507,132.44,132.39,7.5532]
[1744508664211,10.03847153,132.42,132.39,7.5532]
[1744508664614,10.03847153,132.43,132.39,7.5532]
[1744508664814,0.03,132.47,132.4,10.03847153]
[1744508665024,10.03847153,132.46,132.41,10.03847153]
[1744508665226,0.03,132.47,132.41,10.03847153]
[1744508665227,0.31432314,132.47,132.41,10.03847153]
[1744508665534,0.03,132.47,132.44,7.5505]
[1744508666824,10.06847153,132.47,132.43,17.58947153]
[1744508667021,10.06847153,132.47,132.43,7.551]
[1744508668928,0.03,132.47,132.43,17.58947153]
[1744508670728,0.03,132.47,132.45,10.03847153]
[1744508671630,0.03,132.47,132.46,10.03847153]
[1744508673230,0.03,132.47,132.46,17.58787153]
[1744508673410,0.03,132.47,132.44,14.7703]
[1744508673736,0.03,132.47,132.44,24.80877153]
[1744508674120,0.03,132.47,132.45,10.03847153]
[1744508674711,0.03,132.47,132.46,7.5494]
[1744508674925,0.03,132.47,132.45,7.5498]
[1744508675132,0.03,132.47,132.44,17.58887153]
[1744508679036,10.06847153,132.47,132.43,99.18947153]
[1744508679534,0.03,132.47,132.43,99.18947153]
[1744508681039,0.03,132.47,132.45,10.03847153]
[1744508681210,10.03847153,132.46,132.43,81.6]
[1744508681410,0.03,132.47,132.44,10.03847153]
[1744508683338,0.03,132.47,132.45,7.55]